Workbook

Sheet PROPUESTA PLIEGO
B1: MUNICIPALIDAD DE LOS CONQUISTADORES
B3: COTIZACION MUNICIPIO
B4: OBRA: “CASA HABITACION PROYECTO SOCIAL – CUMPLIENDO SUEÑOS ”
B5: PRESUPUESTO OFICIAL | G5: 99121725.53
B6: PLANILLA DE COTIZACION
B7: OCTUBRE 2025
B11: Nº DE | C11: DESCRIPCIÓN | D11: UD. | E11: CANT. | F11: PRECIOS UNITARIOS | H11: IMPORTE TOTAL | I11: % DE INCID.
B12: ITEM | F12: PRECIOS UNITARIOS $ | G12: PRECIOS UNITARIOS EN LETRAS
B13: OBRAS A EJECUTAR
A14: 1
A15: 1 | B15: 1 | C15: =+Hoja1!B6 -> Armado de estructura de bastidores | D15: Und. | E15: 21 | F15: =+Hoja1!I6 -> 80680.44921 | G15: =pesosMN(F15) -> OCHENTA MIL SEISCIENTOS OCHENTA PESOS CON 45 CTVOS.- | H15: =ROUND(+E15*F15,3) -> 1694289.433 | I15: =+Hoja1!C6 -> 0.09
A16: 1 | C16: FORESTACION
A17: 1 | B17: 2 | C17: Forestación Compensatoria | D17: N° | G17: =pesosMN(F17) -> PESO CON 00 CTVOS.- | H17: =ROUND(+E17*F17,3) -> 0 | I17: =ROUND(+H17/#REF!,5) -> 
A18: 1 | C18: DEMOLICIONES VARIAS
A19: 1 | B19: 3 c) | C19: Demolición de cordon cuneta sobre Avda Besada s/ plano | D19: ml | G19: =pesosMN(F19) -> PESO CON 00 CTVOS.- | H19: =ROUND(+E19*F19,3) -> 0 | I19: =ROUND(+H19/#REF!,5) -> 
A20: 1 | B20: 3 d) | C20: Badenes exisitentes sobre Avda. Besada s/ plano | D20: m2 | G20: =pesosMN(F20) -> PESO CON 00 CTVOS.- | H20: =ROUND(+E20*F20,3) -> 0 | I20: =ROUND(+H20/#REF!,5) -> 
A21: 1 | C21: EXCAVACIONES
A22: 1 | B22: 4 | C22: Excavación no clasificada | D22: m3 | G22: =pesosMN(F22) -> PESO CON 00 CTVOS.- | H22: =ROUND(+E22*F22,3) -> 0 | I22: =ROUND(+H22/#REF!,5) -> 
A23: 1 | C23: SUBRASANTE
A24: 1 | B24: 5 | C24: Subrasante de suelo mejorado con 3% de C.U.V | D24: m3 | G24: =pesosMN(F24) -> PESO CON 00 CTVOS.- | H24: =ROUND(+E24*F24,3) -> 0 | I24: =ROUND(+H24/#REF!,5) -> 
A26: 1 | B26: 2 | C26: =+Hoja1!B7 -> Ensamblado y montaje de bastidores estructurales en obra y anclaje | D26: Und. | E26: =+Hoja1!D7 -> 21 | F26: =+Hoja1!I7 -> 107573.9323 | G26: =pesosMN(F26) -> CIENTO SIETE MIL QUINIENTOS SETENTA Y TRES PESOS CON 93 CTVOS.- | H26: =ROUND(+E26*F26,3) -> 2259052.578 | I26: =+Hoja1!C7 -> 0.12
B28: 3 | C28: =+Hoja1!B8 -> Panelizacion exterior para rigidización | D28: m2 | E28: =+Hoja1!D8 -> 82.25 | F28: =+Hoja1!I8 -> 25176.87777 | G28: =pesosMN(F28) -> VEINTICINCO MIL CIENTO SETENTA Y SEIS PESOS CON 88 CTVOS.- | H28: =ROUND(+E28*F28,3) -> 2070798.196 | I28: =+Hoja1!C8 -> 0.11
B30: 4 | C30: =+Hoja1!B9 -> Cubierta de techo, estructura, aislación, enchapado, zinguería | D30: m2 | E30: =+Hoja1!D9 -> 46.45 | F30: =+Hoja1!I9 -> 52686.90978 | G30: =pesosMN(F30) -> CINCUENTA Y DOS MIL SEISCIENTOS OCHENTA Y SEIS PESOS CON 91 CTVOS.- | H30: =ROUND(+E30*F30,3) -> 2447306.959 | I30: =+Hoja1!C9 -> 0.13
B32: 5 | C32: =+Hoja1!B10 -> Aislacion exterior y revestimiento | D32: m2 | E32: =+Hoja1!D10 -> 84.84 | F32: =+Hoja1!I10 -> 43269.21781 | G32: =pesosMN(F32) -> CUARENTA Y TRES MIL DOSCIENTOS SESENTA Y NUEVE PESOS CON 22 CTVOS.- | H32: =ROUND(+E32*F32,3) -> 3670960.439 | I32: =+Hoja1!C10 -> 0.13
A34: 1 | B34: 6 | C34: =+Hoja1!B11 -> Colocación de aberturas exteriores | D34: m2 | E34: =+Hoja1!D11 -> 7 | F34: =+Hoja1!I11 -> 161360.8984 | G34: =pesosMN(F34) -> CIENTO SESENTA Y UN MIL TRESCIENTOS SESENTA PESOS CON 90 CTVOS.- | H34: =ROUND(+E34*F34,3) -> 1129526.289 | I34: =+Hoja1!C11 -> 0.06
B36: 7 | C36: =+Hoja1!B12 -> Panelizacion interior | D36: ml | E36: =+Hoja1!D12 -> 137 | F36: =+Hoja1!I12 -> 16489.43488 | G36: =pesosMN(F36) -> DIECISEIS MIL CUATROCIENTOS OCHENTA Y NUEVE PESOS CON 43 CTVOS.- | H36: =ROUND(+E36*F36,3) -> 2259052.578 | I36: =+Hoja1!C12 -> 0.12
B38: 8 | C38: =+Hoja1!B13 -> Aberturas interiores | D38: m2 | E38: =+Hoja1!D13 -> 3 | F38: =+Hoja1!I13 -> 376508.763 | G38: =pesosMN(F38) -> TRESCIENTOS SETENTA Y SEIS MIL QUINIENTOS OCHO PESOS CON 76 CTVOS.- | H38: =ROUND(+E38*F38,3) -> 1129526.289 | I38: =+Hoja1!C13 -> 0.06
B40: 9 | C40: =+Hoja1!B14 -> Panelizacion en zona humeda (baño y cocina) | D40: m2 | E40: =+Hoja1!D14 -> 23.85 | F40: =+Hoja1!I14 -> 86825.92019 | G40: =pesosMN(F40) -> OCHENTA Y SEIS MIL OCHOCIENTOS VEINTICINCO PESOS CON 92 CTVOS.- | H40: =ROUND(+E40*F40,3) -> 2070798.196 | I40: =+Hoja1!C14 -> 0.11
A42: 1 | B42: 10 | C42: =+Hoja1!B15 -> Revestimiento de zona humeda | D42: m2 | E42: =+Hoja1!D15 -> 27 | F42: =+Hoja1!I15 -> 34861.9225 | G42: =pesosMN(F42) -> TREINTA Y CUATRO MIL OCHOCIENTOS SESENTA Y UN PESOS CON 92 CTVOS.- | H42: =ROUND(+E42*F42,3) -> 941271.907 | I42: =+Hoja1!C15 -> 0.05
B44: 11 | C44: =+Hoja1!B16 -> Terminaciones | D44: ml | E44: =+Hoja1!D16 -> 1 | F44: =+Hoja1!I16 -> 941271.9075 | G44: =pesosMN(F44) -> NOVECIENTOS CUARENTA Y UN MIL DOSCIENTOS SETENTA Y UN PESOS CON 91 CTVOS.- | H44: =ROUND(+E44*F44,3) -> 941271.907 | I44: =+Hoja1!C16 -> 0.02
A45: =SUM(#REF!) ->  | B45: MONTO TOTAL DE LA OBRA | E45: =SUM(H14:H44) -> 20613854.77 | I45: =+I44+I42+I38+I36+I34+I32+I30+I28+I26+I15+I40 -> 1 | J45: 0.01
B47: =CONCATENATE("Importa la presente propuesta la suma de: Son Pesos, ",pesosMN(E45)) -> Importa la presente propuesta la suma de: Son Pesos, VEINTE MILLONES SEISCIENTOS TRECE MIL OCHOCIENTOS CINCUENTA Y CUATRO PESOS CON 77 CTVOS.- | J47: =SUM(I14:I44) -> 
B48: Plazo de ejecución: TRES (3) MESES corridos a partir del acta de replanteo.-

Sheet Hoja1
A2: PROYECTO: | B2: VIVIENDA MUNICIPAL
A3: FECHA: | B3: DE ABRIL DE 2025
H4: ACTUALIZADO AGOSTO 2025
B5: ETAPAS DE AVANCE DE OBRA | C5: PORCENTAJE AVANCE | G5: PRECIO UNIT | H5: =+E40 -> 0.04585767498 | I5: PRECIO UNIT | J5: TOTAL
A6: 1 | B6: Armado de estructura de bastidores | C6: 0.09 | D6: 21 | E6: Und | F6: =C6*$D$17 -> 1620000 | G6: =F6/D6 -> 77142.85714 | H6: =+G6*$H$5 -> 3537.59207 | I6: =+G6+H6 -> 80680.44921 | J6: =+I6*D6 -> 1694289.433
A7: 2 | B7: Ensamblado y montaje de bastidores estructurales en obra y anclaje | C7: 0.12 | D7: 21 | E7: Und | F7: 2160000 | G7: =F7/D7 -> 102857.1429 | H7: =+G7*$H$5 -> 4716.789426 | I7: =+G7+H7 -> 107573.9323 | J7: =+I7*D7 -> 2259052.578
A8: 3 | B8: Panelizacion exterior para rigidización | C8: 0.11 | D8: 82.25 | E8: m2 | F8: 1980000 | G8: 24072.94833 | H8: 1103.92944 | I8: 25176.87777 | J8: 2070798.196
A9: 4 | B9: Cubierta de techo, estructura, aislación, enchapado, zinguería | C9: 0.13 | D9: 46.45 | E9: m2 | F9: 2340000 | G9: 50376.74919 | H9: 2310.160591 | I9: 52686.90978 | J9: 2447306.959
A10: 5 | B10: Aislacion exterior y revestimiento | C10: 0.13 | D10: 84.84 | E10: m2 | F10: 2340000 | G10: 27581.32956 | H10: =+G10*$H$5 -> 1264.815647 | I10: =(+G10+H10)*1.5 -> 43269.21781 | J10: 3670960.439
A11: 6 | B11: Colocación de aberturas exteriores | C11: 0.06 | D11: 7 | E11: Und | F11: 1080000 | G11: 154285.7143 | H11: 7075.18414 | I11: 161360.8984 | J11: 1129526.289
A12: 7 | B12: Panelizacion interior | C12: 0.12 | D12: 137 | E12: m2 | F12: 2160000 | G12: 15766.42336 | H12: 723.0115179 | I12: 16489.43488 | J12: 2259052.578
A13: 8 | B13: Aberturas interiores | C13: 0.06 | D13: 3 | E13: Und | F13: 1080000 | G13: 360000 | H13: 16508.76299 | I13: 376508.763 | J13: 1129526.289
A14: 9 | B14: Panelizacion en zona humeda (baño y cocina) | C14: 0.11 | D14: 23.85 | E14: m2 | F14: 1980000 | G14: 83018.86792 | H14: 3807.052262 | I14: 86825.92019 | J14: 2070798.196
A15: 10 | B15: Revestimiento de zona humeda | C15: 0.05 | D15: 27 | E15: m2 | F15: 900000 | G15: 33333.33333 | H15: 1528.589166 | I15: 34861.9225 | J15: 941271.9075
A16: 11 | B16: Terminaciones | C16: 0.02 | D16: 1 | E16: Und | F16: 360000 | G16: 360000 | H16: 16508.76299 | I16: =(+G16+H16)*2.5 -> 941271.9075 | J16: 941271.9075
C17: =SUM(C6:C16) -> 1 | D17: 18000000 | F17: =SUM(F6:F16) -> 18000000 | J17: =SUM(J6:J16) -> 20613854.77
D19: =+F17-D17 -> 0
E26: 100 | F26: 153080 | G26: =+E26*F26 -> 15308000
D27: MALLA
D28: HIERRO FI 10 | G28: PRECIO
C29: =0.15*238*2 -> 71.4
C30: =0.12*100*2 -> 24 | E30: 0.78 | F30: =236*2+100*2 -> 672 | G30: 34490 | H30: =+E30*F30*G30 -> 18078278.4
C31: =+C29+C30 -> 95.4 | G31: 15140.6
D37: 93867.61 | E37: 83760.68 | F37: 109520.83 | G37: 2025-05-01
D38: 98203.57 | E38: 88085.43 | F38: 113874.12 | G38: 2025-08-01
D39: =(+D38/D37)-100% -> 0.04619229146 | E39: =(+E38/E37)-100% -> 0.05163222171 | F39: 0.03974851177
E40: =(+D39+E39+F39)/3 -> 0.04585767498

Sheet Hoja2

Sheet Hoja4
A1: Column1 | B1: Column2 | C1: Column3 | D1: Column4 | E1: Column5 | F1: Column6
A2: pf estaca | B2: 10000000 | C2: 10000000 | D2: 50000 | E2: estaca
A3: pf1 | B3: 10000000 | C3: 100032934 | D3: 0 | E3: columna
A4: 10 | B4: 9981958 | C4: 10031261 | D4: 49760 | E4: cordon
A5: 11 | B5: 9981716 | C5: 10027622 | D5: 49804 | E5: cordon
A6: 12 | B6: 9979793 | C6: 10025158 | D6: 49826 | E6: cordon
A7: 13 | B7: 9974948 | C7: 10023998 | D7: 49804 | E7: cordon
A8: 14 | B8: 9979414 | C8: 10011591 | D8: 49747 | E8: cordon
A9: 15 | B9: 9968621 | C9: 10010022 | D9: 49644 | E9: cordon
A10: 16 | B10: 9996212 | C10: 10032956 | D10: 49887 | E10: alambrado
A11: 17 | B11: 9976725 | C11: 10030393 | D11: 49971 | E11: alambrado
A12: 18 | B12: 9997074 | C12: 10023789 | D12: 49816 | E12: calle
A13: 19 | B13: 9997496 | C13: 10019941 | D13: 49862 | E13: calle
A14: 20 | B14: 9997982 | C14: 10014925 | D14: 49682 | E14: calle
A15: 21 | B15: 9989968 | C15: 10013502 | D15: 49886 | E15: calle
A16: 22 | B16: 9989193 | C16: 10018538 | D16: 49892 | E16: calle
A17: 23 | B17: 9988246 | C17: 10023980 | D17: 49886 | E17: calle
A18: 24 | B18: 10027954 | C18: 10025311 | D18: 49816 | E18: calle
A19: 25 | B19: 10028120 | C19: 10023062 | D19: 49796 | E19: calle
A20: 26 | B20: 10028604 | C20: 10020255 | D20: 49681 | E20: calle
A21: 27 | B21: 10032843 | C21: 10038554 | D21: 50147 | E21: alambrado
A22: 28 | B22: 10009109 | C22: 10031375 | D22: 49887 | E22: farola
A23: 29 | B23: 10047311 | C23: 10036927 | D23: 49993 | E23: farola
A24: 30 | B24: 10072424 | C24: 10031726 | D24: 49770 | E24: calle
A25: 31 | B25: 10072465 | C25: 10028959 | D25: 49792 | E25: calle
A26: 32 | B26: 10072106 | C26: 10025437 | D26: 49660 | E26: calle
A27: 33 | B27: 10086524 | C27: 10042440 | D27: 49901 | E27: farola
A28: 34 | B28: 10100510 | C28: 10037298 | D28: 49804 | E28: calle
A29: 35 | B29: 10100632 | C29: 10032972 | D29: 49696 | E29: calle
A30: 36 | B30: 10100313 | C30: 10030259 | D30: 49568 | E30: calle
A31: 37 | B31: 10114789 | C31: 10050236 | D31: 49603 | E31: calle
A32: 38 | B32: 10116689 | C32: 10039481 | D32: 49547 | E32: calle
A33: 39 | B33: 10116969 | C33: 10035564 | D33: 49636 | E33: calle
A34: 40 | B34: 10117455 | C34: 10032542 | D34: 49523 | E34: calle
A35: 41 | B35: 10116979 | C35: 10022917 | D35: 49740 | E35: tn
A36: 42 | B36: 10119287 | C36: 10009605 | D36: 49939 | E36: tn
A37: 43 | B37: 10122245 | C37: 9994224 | D37: 50051 | E37: tn
A38: 44 | B38: 10124056 | C38: 9979112 | D38: 50456 | E38: tn
A39: 45 | B39: 10124547 | C39: 9976629 | D39: 50076 | E39: tn
A40: 46 | B40: 10125025 | C40: 9972240 | D40: 50680 | E40: via
A41: 47 | B41: 10100624 | C41: 9968671 | D41: 50724 | E41: via
A42: 48 | B42: 10100223 | C42: 9972483 | D42: 50169 | E42: tn
A43: 49 | B43: 10099421 | C43: 9975360 | D43: 50505 | E43: tn
A44: 50 | B44: 10096160 | C44: 9989438 | D44: 50120 | E44: tn
A45: 51 | B45: 10094264 | C45: 10003821 | D45: 50051 | E45: tn
A46: 52 | B46: 10091476 | C46: 10020418 | D46: 49700 | E46: tn
A47: 53 | B47: 10068184 | C47: 10016339 | D47: 50020 | E47: tn
A48: 54 | B48: 10068983 | C48: 10005291 | D48: 50095 | E48: tn
A49: 55 | B49: 10071544 | C49: 9988882 | D49: 50133 | E49: tn
A50: 56 | B50: 10073538 | C50: 9972344 | D50: 50581 | E50: tn
A51: 57 | B51: 10074058 | C51: 9969775 | D51: 50180 | E51: tn
A52: 58 | B52: 10051379 | C52: 9966506 | D52: 50090 | E52: tn
A53: 59 | B53: 10050675 | C53: 9969459 | D53: 50605 | E53: tn
A54: 60 | B54: 10047188 | C54: 9987105 | D54: 50152 | E54: tn
A55: 61 | B55: 10045087 | C55: 10000134 | D55: 50115 | E55: tn
A56: 62 | B56: 10042106 | C56: 10013984 | D56: 49974 | E56: tn
A57: 63 | B57: 10021138 | C57: 10010165 | D57: 49963 | E57: tn
A58: 64 | B58: 10023193 | C58: 9994246 | D58: 50137 | E58: tn
A59: 65 | B59: 10026809 | C59: 9979490 | D59: 50224 | E59: tn
A60: 66 | B60: 10028392 | C60: 9964868 | D60: 50401 | E60: tn
A61: 67 | B61: 10028174 | C61: 9962820 | D61: 50137 | E61: tn
A62: 68 | B62: 10008833 | C62: 9960331 | D62: 50184 | E62: tn
A63: 69 | B63: 10008484 | C63: 9962588 | D63: 50355 | E63: tn
A64: 70 | B64: 10006208 | C64: 9977115 | D64: 50014 | E64: tn
A65: 71 | B65: 10004385 | C65: 9991796 | D65: 49964 | E65: tn
A66: 72 | B66: 9999672 | C66: 10007815 | D66: 49883 | E66: tn
A67: 73 | B67: 9997061 | C67: 10005659 | D67: 49946 | E67: cesto basura
A68: 74 | B68: 9993652 | C68: 10004409 | D68: 49728 | E68: calle
A69: 75 | B69: 9991330 | C69: 10003696 | D69: 49825 | E69: calle
A70: 76 | B70: 9988476 | C70: 10003513 | D70: 49801 | E70: calle
A71: 77 | B71: 9988295 | C71: 9991905 | D71: 49901 | E71: farola
A72: 78 | B72: 9991137 | C72: 9985918 | D72: 49807 | E72: calle
A73: 79 | B73: 9993707 | C73: 9986177 | D73: 49846 | E73: calle
A74: 80 | B74: 9996564 | C74: 9986324 | D74: 49811 | E74: calle
A75: 81 | B75: 9992935 | C75: 9961009 | D75: 50361 | E75: farola
A76: 82 | B76: 9995575 | C76: 9961301 | D76: 50124 | E76: calle
A77: 83 | B77: 9997356 | C77: 9961766 | D77: 50191 | E77: calle
A78: 84 | B78: 10000519 | C78: 9962206 | D78: 50124 | E78: calle
A79: 85 | B79: 10001411 | C79: 9953311 | D79: 50323 | E79: calle
A80: 86 | B80: 9998831 | C80: 9953140 | D80: 50440 | E80: calle
A81: 87 | B81: 9996319 | C81: 9952547 | D81: 50338 | E81: calle
A82: 88 | B82: 10012418 | C82: 9937331 | D82: 50667 | E82: corralon muni
A83: pf 2 via | B83: 10013590 | C83: 9956115 | D83: 50728 | E83: via
A84: 89 | B84: 10032996 | C84: 9958920 | D84: 50726 | E84: via
A85: 90 | B85: 10052756 | C85: 9961755 | D85: 50736 | E85: via
A86: 91 | B86: 10062837 | C86: 9963204 | D86: 50742 | E86: via
A87: 92 | B87: 10084960 | C87: 9966388 | D87: 50754 | E87: via
A88: pf 3 corralon | B88: 10086144 | C88: 9959371 | D88: 50731 | E88: corralon
A89: 93 | B89: 10087810 | C89: 9945860 | D89: 50705 | E89: corralon
A90: 94 | B90: 10101739 | C90: 9961026 | D90: 50573 | E90: corralon
A91: 95 | B91: 10104010 | C91: 9947727 | D91: 50643 | E91: corralon
A92: 96 | B92: 10164740 | C92: 9954673 | D92: 50312 | E92: corralon
A93: 97 | B93: 10144970 | C93: 9961531 | D93: 50168 | E93: columna luz
A94: 98 | B94: 10143738 | C94: 9952217 | D94: 50430 | E94: pilar

Sheet Hoja3
